bitfinex-derivatives/quotes_ETHF0:USTF0_20250316
["timestamp","ask_amount","ask_price","bid_price","bid_amount"]
[1742116345231,3.2182,1919.7,1919.6,3.71566]
[1742116345433,2.1764,1919.7,1919.6,3.71566]
[1742116345733,3.2182,1919.7,1919.6,3.71566]
[1742116345933,2.1764,1919.7,1919.6,3.71566]
[1742116347031,3.2078,1919.8,1919.7,1.0418]
[1742116347331,4.632,1919.8,1919.7,2.4743]
[1742116347538,1.4242,1919.8,1919.7,2.4743]
[1742116349436,4.632,1919.8,1919.7,2.4743]
[1742116353441,3.2078,1919.8,1919.7,5.7633]
[1742116353943,1.4462,1919.9,1919.8,1.04175]
[1742116354242,1.4462,1919.9,1919.8,3.12615]
[1742116358034,1.4462,1919.9,1919.4,2.60492]
[1742116358240,4.93816,1919.8,1919.7,1.04177]
[1742116358445,1.73036,1919.8,1919.7,1.04177]
[1742116358934,2.41486,1919.8,1919.7,1.04177]
[1742116360635,3.81616,1919.8,1919.7,1.04177]
[1742116361449,3.81619,1919.8,1919.7,1.0418]
[1742116363343,2.7744,1919.8,1919.7,1.0418]
[1742116363539,2.0899,1919.8,1919.7,1.75]
[1742116364046,2.0899,1919.8,1919.7,3.1506]
[1742116368366,1.4013,1919.8,1919.7,3.1506]
[1742116376773,0.6894,1920.0,1919.9,1.0417]
[1742116376968,3.88109849,1920.1,1920.0,1.04164]
[1742116378175,5.26619849,1920.1,1920.0,2.40544]
[1742116378968,6.30778849,1920.1,1920.0,2.40544]
[1742116379170,5.26619849,1920.1,1920.0,2.40544]
[1742116381875,4.60069849,1920.1,1920.0,2.40544]
[1742116385676,3.21559849,1920.1,1920.0,2.40544]
[1742116385882,3.2078,1920.3,1920.2,1.04153]
[1742116386085,3.2078,1920.3,1920.2,4.33753]
[1742116386580,3.2078,1920.3,1920.2,5.78733]
[1742116387676,1.39319849,1920.4,1920.3,1.04148]
[1742116387882,4.5977,1920.7,1920.6,1.04132]
[1742116388087,3.2078,1920.7,1920.6,4.34032]
[1742116388686,3.2078,1920.7,1920.6,5.77822]
[1742116391187,3.2078,1920.7,1920.6,4.34032]
[1742116391388,3.2078,1920.7,1920.6,5.75792]
[1742116393881,3.8797,1920.7,1920.6,5.75792]
[1742116394190,4.5902,1920.7,1920.6,5.76492]
[1742116398995,3.2078,1920.7,1920.6,5.76492]
[1742116400288,1.01807849,1920.8,1920.7,1.04126]
[1742116400490,1.01807849,1920.8,1920.7,2.38636]
[1742116401189,1.01807849,1920.8,1920.7,1.04126]
[1742116401388,2.42137849,1920.8,1920.7,1.04126]
[1742116401589,2.42137849,1920.8,1920.7,2.38636]
[1742116401893,1.74117849,1920.8,1920.7,2.38636]
[1742116406591,1.01807849,1920.8,1920.7,2.38636]
[1742116417403,1.01807849,1920.8,1920.7,5.59416]
[1742116419297,1.70817849,1920.8,1920.7,8.89916]
[1742116431414,0.7137,1921.1,1920.8,1.04121]
[1742116431715,0.7137,1921.1,1920.9,2.41385]
[1742116431716,0.6899,1921.0,1920.9,2.41385]
[1742116431907,0.6899,1921.0,1920.9,5.71285]
[1742116434608,2.0381,1921.0,1920.9,5.71285]
[1742116440224,1.3482,1921.0,1920.9,5.71285]
[1742116440521,3.2078,1921.2,1921.1,1.04104]
[1742116441212,3.2078,1921.2,1921.1,2.42274]
[1742116443219,1.33459849,1921.3,1921.2,1.04099]
[1742116443421,1.33459849,1921.3,1921.2,4.33399]
[1742116443619,2.74749849,1921.3,1921.2,4.33399]
[1742116449723,3.78843849,1921.3,1921.2,1.04099]
[1742116450626,4.77054714,1921.3,1921.2,1.04099]
[1742116453030,4.77054714,1921.3,1921.2,2.48279]
[1742116456120,3.78843849,1921.3,1921.2,2.48279]
[1742116456332,6.99623849,1921.3,1921.2,2.48279]
[1742116457236,5.95529849,1921.3,1921.2,2.48279]
[1742116462935,5.28849849,1921.3,1921.2,2.48279]
[1742116468739,3.87559849,1921.3,1921.2,2.48279]
[1742116468938,3.21559849,1921.3,1921.2,2.48279]
[1742116470637,0.00779849,1921.3,1921.2,2.48279]
[1742116476547,0.00779849,1921.3,1921.2,2.89376686]
[1742116477648,0.00779849,1921.3,1921.2,2.48279]
[1742116481242,0.00779849,1921.3,1921.2,5.77279]
[1742116484253,1.41309849,1921.3,1921.2,5.77179]
[1742116485157,1.41309849,1921.3,1921.2,5.77579]
[1742116493959,2.75319849,1921.3,1921.2,5.77579]
[1742116503461,2.05279849,1921.3,1921.2,5.77579]
[1742116504259,0.00779849,1921.3,1921.2,5.77579]
[1742116504463,5.3346,1921.5,1921.4,1.04088]
[1742116504966,3.2078,1921.5,1921.4,1.04088]
[1742116505162,3.2078,1921.5,1921.4,2.48848]
[1742116506663,5.2468,1921.5,1921.4,2.48848]
[1742116512667,5.2468,1921.5,1921.4,5.77548]
[1742116516773,6.28763,1921.5,1921.4,5.77548]
[1742116516967,1.04088,1921.4,1921.3,1.04869849]
[1742116517162,1.04088,1921.4,1921.3,1.41539849]
[1742116517163,2.40578,1921.4,1921.3,1.41539849]
[1742116517471,2.40578,1921.4,1921.3,0.00779849]
[1742116517863,4.90578,1921.4,1921.3,0.00779849]
[1742116518073,1.04099,1921.2,1921.1,2.4486]
[1742116518278,1.04099,1921.2,1921.1,1.04104]
[1742116518666,3.03609,1921.2,1921.1,1.04104]
[1742116518867,1.0411,1921.1,1921.0,1.04106]
[1742116519067,5.5792,1921.1,1921.0,1.04106]
[1742116529282,1.0411,1921.0,1920.9,1.34729849]
[1742116529583,3.1148,1921.0,1920.9,1.34729849]
[1742116529783,3.1148,1921.0,1920.9,2.38844849]
[1742116533984,2.0737,1921.0,1920.9,2.38844849]
[1742116534876,1.041,1921.2,1920.9,1.34729849]
[1742116535182,1.041,1921.2,1921.1,1.04104]
[1742116535584,1.041,1921.2,1921.1,2.43514]
[1742116536172,5.2521,1921.3,1921.1,2.43514]
[1742116536173,3.2078,1921.3,1921.2,1.04099]
[1742116536374,3.2078,1921.3,1921.2,2.41179]
[1742116536776,3.2078,1921.3,1921.2,5.70579]
[1742116538280,4.24874,1921.3,1921.2,4.6648]
[1742116538484,3.2078,1921.3,1921.2,5.70579]
[1742116539285,1.69832,1921.4,1921.3,1.04094]
[1742116539586,1.69832,1921.4,1921.3,3.08634]
[1742116539788,3.10522,1921.4,1921.3,3.08634]
[1742116541795,2.0643,1921.4,1921.3,3.08634]
[1742116542596,3.10518,1921.4,1921.3,3.08634]
[1742116543799,3.10518,1921.4,1921.3,2.41734]
[1742116543999,3.79088,1921.4,1921.3,2.41734]
[1742116545103,3.79088,1921.4,1921.3,1.3764]
[1742116545598,3.79088,1921.4,1921.3,2.41734]
[1742116546903,3.79088,1921.4,1921.3,1.3764]
[1742116547101,3.79088,1921.4,1921.3,2.41734]
[1742116547506,3.79088,1921.4,1921.3,1.3764]
[1742116550597,1.0411,1921.0,1920.9,1.04890849]
[1742116550911,4.2489,1921.0,1920.9,0.00779849]
[1742116551103,4.2489,1921.0,1920.9,1.04894849]
[1742116551809,5.6883,1921.0,1920.9,1.04894849]
[1742116555010,3.2078,1921.0,1920.9,1.04894849]
[1742116556510,4.2489,1921.0,1920.9,1.04894849]
[1742116556816,3.2078,1921.0,1920.9,1.04894849]
[1742116557009,4.2489,1921.0,1920.9,1.04894849]
[1742116559215,5.6329,1921.0,1920.9,1.04894849]
[1742116559414,3.2078,1921.0,1920.9,1.04894849]
[1742116559813,4.2489,1921.0,1920.9,1.04894849]
[1742116560918,3.2078,1921.0,1920.9,1.04894849]
[1742116565022,3.2078,1921.0,1920.9,4.33894849]
[1742116566021,5.66791,1921.2,1921.1,1.04104]
[1742116566727,5.66791,1921.2,1921.1,2.41974]
[1742116570531,3.2078,1921.2,1921.1,2.41974]
[1742116570829,4.24879,1921.2,1921.1,2.41974]
[1742116571023,3.2078,1921.2,1921.1,2.41974]
[1742116571423,4.6658,1921.2,1921.1,2.41974]
[1742116571724,5.70679,1921.2,1921.1,2.41974]
[1742116572533,4.6658,1921.2,1921.1,2.41974]
[1742116572721,3.2078,1921.2,1921.1,2.41974]
[1742116576529,3.2078,1921.4,1921.2,1.04099]
[1742116576731,3.2078,1921.4,1921.3,3.18764]
[1742116578829,3.21559849,1921.6,1921.5,1.04083]
[1742116579431,3.21559849,1921.6,1921.5,1.70423]
[1742116580937,4.56149849,1921.6,1921.5,1.70423]
[1742116581731,3.21559849,1921.6,1921.5,1.70423]
[1742116584935,3.21559849,1921.6,1921.5,4.99823]
[1742116585135,4.59719849,1921.6,1921.5,4.99823]
[1742116585534,4.59719849,1921.6,1921.5,4.33483]
[1742116585927,5.32629849,1921.6,1921.5,4.33483]
[1742116586133,5.32629849,1921.6,1921.5,5.79243]
[1742116587826,6.36706849,1921.6,1921.5,5.79243]
[1742116588033,6.36706849,1921.6,1921.5,2.49843]
[1742116588232,6.36706849,1921.6,1921.5,1.04083]
[1742116590341,5.32629849,1921.6,1921.5,1.04083]
[1742116590544,6.36706849,1921.6,1921.5,1.04083]
[1742116592037,5.32629849,1921.6,1921.5,1.04083]
[1742116592748,6.36706849,1921.6,1921.5,1.04083]
[1742116592943,6.36706849,1921.6,1921.5,2.45493]
[1742116593748,5.32629849,1921.6,1921.5,2.45493]
[1742116595851,4.59719849,1921.6,1921.5,2.45493]
[1742116609353,3.21559849,1921.6,1921.5,2.45493]
[1742116609659,3.21559849,1921.6,1921.5,5.74493]
[1742116613964,0.00779849,1921.6,1921.5,5.74493]
[1742116621057,3.2078,1921.8,1921.7,1.04072]
[1742116621770,4.5451,1921.8,1921.7,2.44832]
[1742116631681,5.58577,1921.8,1921.7,2.44832]
[1742116633285,4.5451,1921.8,1921.7,2.44832]
[1742116635587,5.58577,1921.8,1921.7,2.44832]
[1742116636283,5.58577,1921.8,1921.7,1.4076]
[1742116636585,7.1468,1921.8,1921.3,2.60233]
[1742116636780,4.24861,1921.6,1921.5,1.04079]
[1742116637288,1.04083,1921.5,1921.4,2.36363]
[1742116637589,1.04097,1921.3,1921.2,1.04092]
[1742116637788,3.2078,1921.3,1921.2,2.36372]
[1742116638189,4.24874,1921.3,1921.2,2.36372]
[1742116638378,4.93154,1921.3,1921.2,2.36372]
[1742116638984,4.93154,1921.3,1921.2,1.04092]
[1742116639187,1.04104,1921.2,1921.1,1.04101]
[1742116639388,3.17464,1921.2,1921.1,1.04101]
[1742116640786,3.17464,1921.2,1921.1,2.35981]
[1742116643899,3.17464,1921.2,1921.1,1.3188]
[1742116644396,3.17464,1921.2,1921.0,1.04106]
[1742116644397,1.04104,1921.1,1921.0,1.04106]
[1742116644592,1.04104,1921.1,1920.9,0.00779849]
[1742116644593,1.0411,1921.0,1920.9,2.42121849]
[1742116644792,1.7242,1921.0,1920.9,2.42121849]
[1742116646705,0.6831,1921.0,1920.9,2.42121849]
[1742116647300,2.42715,1921.1,1921.0,1.0411]
[1742116647509,2.42715,1921.1,1921.0,2.421]
[1742116647993,1.3861,1921.1,1921.0,2.421]
[1742116648195,2.44022,1921.2,1921.1,1.04104]
[1742116648396,3.79872,1921.2,1921.1,3.08824]
[1742116649907,3.79872,1921.2,1921.1,2.42094]
[1742116651704,3.08319,1921.2,1921.1,2.42094]
[1742116652009,2.0422,1921.2,1921.1,2.42094]
[1742116652399,3.08319,1921.2,1921.1,2.42094]
[1742116654511,2.0422,1921.2,1921.1,2.42094]
[1742116655210,3.08319,1921.2,1921.1,2.42094]
[1742116655403,2.0422,1921.2,1921.1,2.42094]
[1742116655606,3.08319,1921.2,1921.1,2.42094]
[1742116655911,4.24876,1921.3,1921.2,1.04099]
[1742116656101,4.24876,1921.3,1921.2,3.13929]
[1742116656708,3.2078,1921.3,1921.2,3.13929]
[1742116657012,4.24874,1921.3,1921.2,3.13929]
[1742116658011,3.2078,1921.3,1921.2,3.13929]
[1742116662314,5.3321,1921.6,1921.5,1.04083]
[1742116662517,3.2078,1921.6,1921.5,1.04083]
[1742116663318,0.6628,1921.8,1921.7,1.04072]
[1742116663615,5.65843849,1921.9,1921.8,1.04067]
[1742116663813,4.61779849,1921.9,1921.8,1.04067]
[1742116664003,3.21559849,1921.9,1921.8,1.04067]
[1742116664407,3.21559849,1921.9,1921.8,1.73977]
[1742116669413,0.00779849,1921.9,1921.8,1.73977]
[1742116670413,3.2078,1922.1,1921.8,1.73977]
[1742116670614,3.2078,1922.1,1922.0,1.04056]
[1742116671013,3.2078,1922.1,1922.0,2.42326]
[1742116672619,0.00519896,1922.2,1922.1,1.0405]
[1742116672815,0.00519896,1922.2,1922.1,3.1323]
[1742116675323,3.8908,1922.4,1922.3,1.04039]
[1742116675324,3.2078,1922.4,1922.3,1.04039]
[1742116675622,1.30151849,1922.4,1922.3,4.33139]
[1742116676115,1.30151849,1922.4,1922.3,5.66859]
[1742116676319,4.6626,1922.8,1922.7,1.04018]
[1742116677120,4.6626,1922.8,1922.7,3.04608]
[1742116677325,3.2078,1922.8,1922.7,3.04608]
[1742116679727,2.19601,1922.9,1922.8,1.04012]
[1742116679929,2.19601,1922.9,1922.8,2.40562]
[1742116681123,3.23608,1922.9,1922.8,2.40562]
[1742116681319,2.19601,1922.9,1922.8,2.40562]
[1742116687630,2.19601,1922.9,1922.7,3.291]
[1742116687631,6.44388,1922.9,1922.7,3.291]
[1742116687823,2.0222,1922.8,1922.7,5.68562]
[1742116688332,2.0222,1922.8,1922.6,1.04021]
[1742116688529,1.04025,1922.6,1922.5,4.33724]
[1742116688734,1.04025,1922.6,1922.5,2.48574]
[1742116690324,1.04033,1922.5,1922.4,1.0403]
[1742116690524,1.04034,1922.4,1922.3,2.48585]
[1742116690740,1.3224,1922.4,1922.0,0.00779849]
[1742116691028,1.3224,1922.4,1922.3,1.04039]
[1742116692020,2.36274,1922.4,1922.3,1.04039]
[1742116692422,1.3224,1922.4,1922.3,1.04039]
[1742116693822,1.3224,1922.4,1922.3,1.72339]
[1742116694628,1.4196,1922.5,1922.4,1.04034]
[1742116694824,0.713,1922.5,1922.4,2.37674]
[1742116697123,3.21009,1922.5,1922.4,2.37674]
[1742116697434,2.1698,1922.5,1922.4,2.37674]
[1742116699825,3.2078,1922.7,1922.6,1.04023]
[1742116700227,5.62198,1922.7,1922.6,1.04023]
[1742116702432,4.5818,1922.7,1922.6,1.04023]
[1742116702629,3.2078,1922.7,1922.6,1.71273]
[1742116702830,3.2078,1922.7,1922.6,5.71193]
[1742116704237,1.3213,1922.8,1922.7,1.04018]
[1742116704437,2.36142,1922.8,1922.7,2.48708]
[1742116704733,1.3213,1922.8,1922.7,2.48708]
[1742116706836,3.9024,1922.9,1922.8,1.04012]
[1742116707035,5.3598,1922.9,1922.8,2.42392]
[1742116709229,3.2078,1922.9,1922.8,2.42392]
[1742116714036,1.04007,1922.9,1922.8,5.72788]
[1742116714440,1.69747,1922.9,1922.8,5.72788]
[1742116714840,0.6574,1922.9,1922.8,5.72788]
[1742116715242,2.0573,1922.9,1922.8,5.72788]
[1742116715442,1.3999,1922.9,1922.8,5.72788]
[1742116715645,1.04019,1922.7,1922.6,1.04021]
[1742116715849,1.04021,1922.7,1922.4,2.36687202]
[1742116716039,2.0539,1922.6,1922.5,1.04025]
[1742116716235,2.0539,1922.6,1922.5,2.36235]
[1742116717434,3.09413,1922.6,1922.5,2.36235]
[1742116717852,2.0539,1922.6,1922.5,2.36235]
[1742116721549,3.09413,1922.6,1922.5,2.36235]
[1742116724064,2.0539,1922.6,1922.5,2.36235]
[1742116725066,3.09413,1922.6,1922.5,2.36235]
[1742116728161,5.2617,1922.6,1922.2,1.04037]
[1742116728366,1.04045,1922.3,1922.2,1.04037]
[1742116728865,1.04045,1922.3,1922.1,2.41886]
[1742116728866,1.04045,1922.2,1922.1,2.41886]
[1742116729060,1.73775,1922.2,1922.1,2.41886]
[1742116729264,3.10785,1922.2,1922.1,1.3784]
[1742116729564,1.0405,1922.1,1922.0,1.04831849]
[1742116729768,2.4106,1922.1,1922.0,2.42671849]
[1742116735673,2.4106,1922.1,1922.0,1.38619849]
[1742116736073,2.4106,1922.1,1922.0,2.42675849]
[1742116736770,2.4106,1922.1,1922.0,1.38619849]
[1742116737470,2.4106,1922.1,1922.0,2.42675849]
[1742116737871,2.4106,1922.1,1922.0,0.00779849]
[1742116738476,2.4106,1922.1,1922.0,1.39329849]
[1742116741476,5.6184,1922.1,1922.0,1.39329849]
[1742116743682,5.6184,1922.1,1921.8,1.04066]
[1742116743881,1.04072,1921.7,1921.6,0.6818]
[1742116744391,1.04077,1921.6,1921.5,0.7267]
[1742116744678,3.09887,1921.6,1921.5,1.4251]
[1742116744885,1.04083,1921.5,1921.4,7.56865]
[1742116745084,2.38193,1921.5,1921.4,0.00779849]
[1742116745278,6.26233,1921.5,1921.4,0.00779849]
[1742116745972,7.82358,1921.5,1921.0,3.2078]
[1742116746173,1.04119,1920.9,1920.7,3.2078]
[1742116746385,1.04119,1920.9,1920.8,1.04117]
[1742116746571,3.2078,1921.0,1920.7,0.6718]
[1742116746778,1.04129,1920.7,1920.5,3.2078]
[1742116747089,1.4374,1920.6,1920.5,2.37964]
[1742116747279,2.47872,1920.6,1920.5,3.05144]
[1742116747579,1.4374,1920.6,1920.5,3.05144]
[1742116747983,2.47872,1920.6,1920.5,2.0101]
[1742116749189,1.04137,1920.5,1920.4,0.00779849]
[1742116749378,2.43977,1920.5,1920.4,1.41129849]
[1742116750278,2.43977,1920.5,1920.4,0.00779849]
[1742116751683,2.43977,1920.5,1920.3,1.4035]
[1742116751684,1.04142,1920.4,1920.3,1.4035]
[1742116751984,5.64762,1920.4,1920.3,1.4035]
[1742116754394,1.04148,1920.3,1919.6,3.2078]
[1742116754585,1.04171,1919.9,1919.8,1.04175]
[1742116754790,3.2078,1920.1,1919.8,1.04175]
[1742116754989,3.2078,1920.1,1919.9,2.4275]
[1742116754990,2.46024,1920.0,1919.9,2.4275]
[1742116755186,1.4186,1920.0,1919.9,2.4275]
[1742116755387,2.46024,1920.0,1919.9,2.4275]
[1742116755788,1.4186,1920.0,1919.9,2.4275]
[1742116756695,2.46024,1920.0,1919.9,2.4275]
[1742116757195,3.919,1920.1,1920.0,1.04164]
[1742116757393,6.40629,1920.1,1920.0,1.358]
[1742116757589,3.19849,1920.1,1920.0,1.358]
[1742116758092,1.04157,1920.2,1920.1,1.04159]
[1742116758301,2.48727,1920.2,1920.1,1.04159]
[1742116758495,2.48727,1920.2,1920.0,2.3996]
[1742116758896,2.48727,1920.2,1920.1,1.391]
[1742116759097,2.48727,1920.2,1920.1,2.43259]
[1742116759398,2.48727,1920.2,1920.1,1.391]
[1742116760199,2.48727,1920.2,1920.1,2.43259]
[1742116761098,2.48727,1920.2,1920.1,1.391]
[1742116761488,2.48727,1920.2,1920.1,2.43259]
[1742116762897,1.4457,1920.2,1920.1,2.43259]
[1742116763488,2.48723,1920.2,1920.1,2.43259]
[1742116764091,3.2078,1920.3,1920.2,1.04153]
[1742116764404,3.2078,1920.3,1920.2,2.43173]
[1742116764700,4.24928,1920.3,1920.2,2.43173]
[1742116764904,5.61438,1920.3,1920.2,2.43173]
[1742116767905,2.40658,1920.3,1920.2,2.43173]
[1742116768201,1.04145,1920.4,1920.3,1.04142]
[1742116768594,1.4508,1920.4,1920.3,1.04142]
[1742116768795,1.4508,1920.4,1920.3,2.44912]
[1742116769003,2.49222,1920.4,1920.3,2.44912]
[1742116771297,2.49222,1920.4,1920.3,3.13592]
[1742116772306,2.49222,1920.4,1920.3,2.44912]
[1742116772506,3.18822,1920.4,1920.3,2.44912]
[1742116776307,3.18822,1920.4,1920.3,1.4077]
[1742116776507,1.04153,1920.2,1920.1,0.6868]
[1742116776706,1.04153,1920.2,1920.1,3.10814]
[1742116778310,1.04153,1920.2,1920.1,1.3798]
[1742116778611,1.04159,1920.1,1920.0,4.2494]
[1742116778804,3.77719,1920.1,1920.0,4.2494]
[1742116779005,3.77719,1920.1,1919.9,2.0775]
[1742116779006,1.04164,1920.0,1919.9,1.3561]
[1742116779200,5.60624,1920.0,1919.9,1.3561]
[1742116780109,5.60624,1920.0,1919.9,2.3978]
[1742116780612,5.60624,1920.0,1919.9,1.3561]
[1742116781212,5.60624,1920.0,1919.9,2.3978]
[1742116782016,1.0417,1919.9,1919.8,0.00779849]
[1742116782216,2.3941,1919.9,1919.8,0.00779849]
[1742116783013,2.3941,1919.9,1919.8,1.40069849]
[1742116783409,2.3941,1919.9,1919.8,2.44244849]
[1742116784221,2.3941,1919.9,1919.8,1.40069849]
[1742116786017,2.3941,1919.9,1919.8,2.44244849]
[1742116786711,2.3941,1919.9,1919.8,1.40069849]
[1742116791013,2.3941,1919.9,1919.8,2.44244849]
[1742116792311,2.3941,1919.9,1919.8,1.40069849]
[1742116794114,2.3941,1919.9,1919.8,1.04954849]
[1742116794321,2.3941,1919.9,1919.4,1.04191]
[1742116794322,1.04197,1919.5,1919.4,1.04191]
[1742116794507,1.04191,1919.6,1919.5,1.04186]
[1742116794819,3.11311,1919.6,1919.5,2.42836]
[1742116796417,2.0712,1919.6,1919.5,2.42836]
[1742116796611,1.04186,1919.6,1919.5,2.42836]
[1742116797109,2.38696,1919.6,1919.5,2.42836]
[1742116797521,1.3451,1919.6,1919.5,2.42836]
[1742116798023,2.38696,1919.6,1919.5,2.42836]
[1742116798720,1.3451,1919.6,1919.5,2.42836]
[1742116799018,4.25742849,1919.7,1919.6,1.04186]
[1742116799411,0.00779849,1919.7,1919.6,1.04186]
[1742116800121,1.04959849,1919.7,1919.6,1.04186]
[1742116800311,0.00779849,1919.7,1919.6,1.04186]
[1742116801018,1.04959849,1919.7,1919.6,1.04186]
[1742116802021,0.00779849,1919.7,1919.6,1.04186]
[1742116802217,1.04959849,1919.7,1919.6,1.04186]
[1742116803716,1.04189,1919.6,1919.5,1.04186]
[1742116804020,2.1178,1919.6,1919.5,1.04186]
[1742116804824,0.00779849,1919.7,1919.6,1.04186]
[1742116808726,0.00779849,1919.7,1919.6,1.76046]
[1742116810024,0.00779849,1919.7,1919.6,3.22006]
[1742116810618,3.2078,1919.9,1919.8,1.04175]
[1742116811219,3.2078,1919.9,1919.8,2.37855]
[1742116813726,2.38063849,1920.0,1919.9,1.0417]
[1742116813920,2.38063849,1920.0,1919.9,2.4728]
[1742116816327,1.33899849,1920.0,1919.9,2.4728]
[1742116816519,2.38063849,1920.0,1919.9,2.4728]
[1742116819332,2.38063849,1920.0,1919.6,0.7186]
[1742116819333,7.15101849,1920.0,1919.6,0.7186]
[1742116819530,1.04175,1919.8,1919.7,2.3589]
[1742116819731,1.04175,1919.8,1919.7,1.3171]
[1742116819932,2.49035,1919.8,1919.7,1.3171]
[1742116820331,2.49035,1919.8,1919.7,2.3589]
[1742116820821,2.49035,1919.8,1919.7,1.3171]
[1742116821026,1.0418,1919.7,1919.6,1.04182]
[1742116821222,2.4904,1919.7,1919.6,2.35892]
[1742116822832,2.4904,1919.7,1919.6,2.35896]
[1742116829638,1.04186,1919.6,1919.5,1.0419]
[1742116829849,3.79116,1919.6,1919.5,1.0419]
[1742116831030,3.79116,1919.6,1919.5,2.4127]
[1742116833642,3.09156,1919.6,1919.5,2.4127]
[1742116834036,3.09156,1919.6,1919.4,0.67399849]
[1742116834037,1.04191,1919.5,1919.4,0.00779849]
[1742116834232,3.09581,1919.5,1919.4,0.00779849]
[1742116834440,1.04202,1919.3,1919.2,1.4346]
[1742116834640,1.04208,1919.2,1919.1,1.04211]
[1742116834941,3.08458,1919.2,1919.1,1.04211]
[1742116835142,7.7503,1919.2,1918.4,3.2078]
[1742116835450,3.2078,1918.6,1918.2,2.60655]
[1742116835645,3.2078,1918.6,1918.5,1.04246]
[1742116835840,3.2078,1918.6,1918.4,1.4467]
[1742116836040,3.2078,1918.6,1918.5,1.04246]
[1742116836041,4.25025,1918.6,1918.5,1.04246]
[1742116836238,1.04246,1918.5,1918.4,2.48921]
[1742116836438,4.25022,1918.6,1918.5,1.04246]
[1742116836739,3.2078,1918.6,1918.5,2.48916]
[1742116837136,3.2078,1918.6,1918.2,0.00781901]
[1742116837342,1.3469,1918.7,1918.2,0.00781901]
[1742116837543,0.6698,1918.7,1918.6,1.0424]
[1742116837837,6.58659849,1919.0,1918.7,1.04229]
[1742116837838,3.87909849,1919.0,1918.7,1.04229]
[1742116838043,3.87909849,1919.0,1918.4,9.19307]
[1742116838044,0.6771,1918.9,1918.6,1.04236]
[1742116838238,1.04229,1918.8,1918.7,1.4115]
[1742116838438,0.6771,1918.9,1918.7,1.4115]
[1742116838638,0.6771,1918.9,1918.8,1.04229]
[1742116838839,3.21559849,1919.0,1918.9,1.04224]
[1742116839440,0.00779849,1919.0,1918.9,1.04224]
[1742116839639,0.00779849,1919.0,1918.9,2.45374]
[1742116841350,3.2078,1919.4,1919.2,1.04205]
[1742116841641,4.24981,1919.4,1919.3,2.39452]
[1742116842039,0.6771,1919.5,1919.4,1.04197]
[1742116842343,1.71901,1919.5,1919.4,2.39447]
[1742116844350,0.6771,1919.5,1919.4,2.39447]
[1742116844549,3.87621901,1919.6,1919.4,2.39447]
[1742116844550,3.21561901,1919.6,1919.5,1.04191]
[1742116844742,3.21561901,1919.6,1919.5,2.40391]
[1742116845943,4.25747901,1919.6,1919.5,2.40391]
[1742116846142,3.21561901,1919.6,1919.5,2.40391]
[1742116849359,4.25747901,1919.6,1919.5,2.40391]
[1742116850255,3.21561901,1919.6,1919.5,2.40391]
[1742116850452,4.25747901,1919.6,1919.5,2.40391]
[1742116850653,5.70347901,1919.6,1919.5,2.40391]
[1742116851053,4.66161901,1919.6,1919.5,2.40391]
[1742116852159,5.70347901,1919.6,1919.5,2.40391]
[1742116854359,4.66161901,1919.6,1919.5,2.40391]
[1742116857659,3.21561901,1919.6,1919.5,2.40391]
[1742116858860,4.60751901,1919.6,1919.5,2.40391]
[1742116859050,5.64937901,1919.6,1919.5,2.40391]
[1742116859252,4.60751901,1919.6,1919.5,2.40391]
[1742116859557,5.64937901,1919.6,1919.5,2.40391]
[1742116859957,4.60751901,1919.6,1919.5,2.40391]
[1742116860159,5.64937901,1919.6,1919.5,2.40391]
[1742116861353,5.64937901,1919.6,1919.5,3.11581]
[1742116862551,4.60751901,1919.6,1919.5,3.11581]
[1742116862859,5.64937901,1919.6,1919.5,3.11581]
[1742116865078,1.04191,1919.5,1919.4,4.42594]
[1742116865263,3.80001,1919.5,1919.4,4.42594]
[1742116866660,2.7581,1919.5,1919.4,4.42594]
[1742116866850,2.0653,1919.5,1919.4,4.42594]
[1742116868657,1.4011,1919.5,1919.4,4.42594]
[1742116870064,2.44301,1919.5,1919.4,4.42594]
[1742116870871,1.4011,1919.5,1919.4,4.42594]
[1742116872163,1.4011,1919.5,1919.4,1.04194]
[1742116872866,1.4011,1919.5,1919.4,2.38234]
[1742116874871,2.1212,1919.5,1919.4,2.38234]
[1742116876669,3.16311,1919.5,1919.4,2.38234]
[1742116876872,0.00781901,1919.6,1919.5,1.04191]
[1742116877072,1.42861901,1919.6,1919.5,2.47261]
[1742116878068,0.72791901,1919.6,1919.5,2.47261]
[1742116878271,0.00781901,1919.6,1919.5,2.47261]
[1742116879873,0.00781901,1919.6,1919.5,5.68041]
[1742116880071,0.00781901,1919.6,1919.5,8.18041]
[1742116880471,0.00781901,1919.6,1919.5,5.68041]
[1742116880777,4.64,1920.2,1920.1,1.04159]
[1742116881172,1.4322,1920.2,1920.1,1.04159]
[1742116881373,0.7091,1920.2,1920.1,1.04159]
[1742116882077,0.7091,1920.2,1920.1,2.40699]
[1742116882274,1.32841901,1920.3,1920.2,1.04153]
[1742116882773,1.04166,1920.0,1919.6,2.60455]
[1742116882979,1.0417,1919.9,1919.8,1.04171]
[1742116883876,1.0417,1919.9,1919.5,5.97375]
[1742116883877,3.2078,1919.9,1919.5,3.369]
[1742116884079,1.04179,1919.8,1919.7,1.04179]
[1742116884673,1.0418,1919.7,1919.6,2.39552]
[1742116885981,1.0418,1919.7,1919.6,1.3537]
[1742116886182,5.81206,1919.9,1919.4,3.9371]
[1742116886481,0.6831,1919.6,1919.5,1.0419]
[1742116886682,0.6831,1919.6,1919.5,2.404]
[1742116886887,1.04185,1919.7,1919.6,1.04186]
[1742116887179,1.04185,1919.7,1919.6,2.40396]
[1742116887377,1.04185,1919.7,1919.6,1.3621]